[Event "Early-Titled-Tuesday-Blitz-January-23-2024"]
[Site "Chess.com"]
[Date "2024.01.23"]
[Round "5"]
[White "HeroWilczek"]
[Black "annasargsyan_m"]
[Result "1-0"]
[WhiteElo "2448"]
[BlackElo "2551"]
[TimeControl "180+1"]
[EndTime "8:58:41 PST"]
[Termination "HeroWilczek won on time"]

1. e4 {[%clk 0:03:00.9]} 1... c6 {[%clk 0:02:42.5]} 2. d4 {[%clk 0:02:59.3]}
2... d5 {[%clk 0:02:43.4]} 3. Nc3 {[%clk 0:02:59.8]} 3... dxe4 {[%clk
0:02:43.3]} 4. Nxe4 {[%clk 0:03:00.7]} 4... Nd7 {[%clk 0:02:43.8]} 5. Nf3 {[%clk
0:02:58.9]} 5... Ngf6 {[%clk 0:02:43.5]} 6. Nxf6+ {[%clk 0:02:57.9]} 6... Nxf6
{[%clk 0:02:44.4]} 7. Bd3 {[%clk 0:02:57.1]} 7... Bg4 {[%clk 0:02:43.5]} 8. c3
{[%clk 0:02:57.2]} 8... e6 {[%clk 0:02:43.8]} 9. h3 {[%clk 0:02:56.9]} 9... Bh5
{[%clk 0:02:43.5]} 10. Bf4 {[%clk 0:02:54.9]} 10... Bd6 {[%clk 0:02:43.4]} 11.
Bxd6 {[%clk 0:02:53.7]} 11... Qxd6 {[%clk 0:02:44.3]} 12. O-O {[%clk 0:02:53.8]}
12... O-O {[%clk 0:02:44.9]} 13. Re1 {[%clk 0:02:53.5]} 13... Rad8 {[%clk
0:02:45.1]} 14. Be2 {[%clk 0:02:45.3]} 14... Bg6 {[%clk 0:02:41]} 15. Ne5 {[%clk
0:02:43.2]} 15... Nd5 {[%clk 0:02:41.6]} 16. Bf3 {[%clk 0:02:38.6]} 16... Nf6
{[%clk 0:02:38.6]} 17. Qb3 {[%clk 0:02:35.9]} 17... Qc7 {[%clk 0:02:38.9]} 18.
Rad1 {[%clk 0:02:34]} 18... Rd6 {[%clk 0:02:38.8]} 19. Qa3 {[%clk 0:02:17.2]}
19... a6 {[%clk 0:02:36.7]} 20. Qb4 {[%clk 0:02:09.9]} 20... Rfd8 {[%clk
0:02:34.6]} 21. a4 {[%clk 0:02:08.7]} 21... a5 {[%clk 0:02:33]} 22. Qb3 {[%clk
0:02:03.9]} 22... Bf5 {[%clk 0:02:05.4]} 23. Nc4 {[%clk 0:01:58.2]} 23... R6d7
{[%clk 0:02:04.5]} 24. Nb6 {[%clk 0:01:38.8]} 24... Re7 {[%clk 0:02:04.1]} 25.
Re5 {[%clk 0:01:36]} 25... Nd5 {[%clk 0:01:48.1]} 26. Nxd5 {[%clk 0:01:21.2]}
26... cxd5 {[%clk 0:01:47.3]} 27. Rde1 {[%clk 0:01:21]} 27... Red7 {[%clk
0:01:28.7]} 28. Qb5 {[%clk 0:01:06.6]} 28... h6 {[%clk 0:01:24.6]} 29. h4 {[%clk
0:00:55.7]} 29... Rd6 {[%clk 0:01:21.2]} 30. Qe2 {[%clk 0:00:46.6]} 30... Rb6
{[%clk 0:01:15.5]} 31. g4 {[%clk 0:00:45.5]} 31... Bg6 {[%clk 0:01:14.5]} 32. h5
{[%clk 0:00:44]} 32... Be4 {[%clk 0:01:11.4]} 33. Bxe4 {[%clk 0:00:40.4]} 33...
dxe4 {[%clk 0:01:12.3]} 34. Rxe4 {[%clk 0:00:40.4]} 34... Qc6 {[%clk 0:01:11.7]}
35. Qc2 {[%clk 0:00:34.6]} 35... Rd5 {[%clk 0:01:07.9]} 36. Re5 {[%clk
0:00:30.7]} 36... Rxd4 {[%clk 0:01:04.2]} 37. Qe2 {[%clk 0:00:23.5]} 37... Rxa4
{[%clk 0:00:59.8]} 38. Rd1 {[%clk 0:00:18.9]} 38... Qc7 {[%clk 0:00:51.7]} 39.
Re3 {[%clk 0:00:15.6]} 39... Rd6 {[%clk 0:00:47.2]} 40. Red3 {[%clk 0:00:13.3]}
40... Rxd3 {[%clk 0:00:47.3]} 41. Rxd3 {[%clk 0:00:12.9]} 41... Qf4 {[%clk
0:00:37.6]} 42. f3 {[%clk 0:00:11.4]} 42... Qg3+ {[%clk 0:00:31.4]} 43. Kh1
{[%clk 0:00:09.6]} 43... Qh4+ {[%clk 0:00:18.5]} 44. Kg2 {[%clk 0:00:07.9]}
44... Rc4 {[%clk 0:00:12.7]} 45. Qd2 {[%clk 0:00:04.4]} 45... Rc8 {[%clk
0:00:12]} 46. Rd7 {[%clk 0:00:05]} 46... b5 {[%clk 0:00:10.6]} 47. Qe2 {[%clk
0:00:04.8]} 47... Qg5 {[%clk 0:00:09.5]} 48. Qd2 {[%clk 0:00:02.5]} 48... a4
{[%clk 0:00:07.9]} 49. Qxg5 {[%clk 0:00:02.3]} 49... hxg5 {[%clk 0:00:08.1]} 50.
Rb7 {[%clk 0:00:03.2]} 50... Rc5 {[%clk 0:00:08.1]} 51. Kf2 {[%clk 0:00:03.8]}
51... f6 {[%clk 0:00:07.9]} 52. Ke3 {[%clk 0:00:04]} 52... a3 {[%clk 0:00:05.3]}
53. bxa3 {[%clk 0:00:03.1]} 53... Rxc3+ {[%clk 0:00:06]} 54. Kf2 {[%clk
0:00:03.6]} 54... Rxa3 {[%clk 0:00:06.1]} 55. Rxb5 {[%clk 0:00:04.3]} 55... Ra6
{[%clk 0:00:05.7]} 56. Rb7 {[%clk 0:00:04.4]} 56... Kh7 {[%clk 0:00:06.4]} 57.
Kg2 {[%clk 0:00:04.1]} 57... Kh6 {[%clk 0:00:06.7]} 58. Rb8 {[%clk 0:00:03.8]}
58... Kh7 {[%clk 0:00:07.1]} 59. Rb7 {[%clk 0:00:04]} 59... e5 {[%clk
0:00:07.6]} 60. Kg3 {[%clk 0:00:03.9]} 60... Ra3 {[%clk 0:00:07.5]} 61. Kg2
{[%clk 0:00:04.3]} 61... Ra4 {[%clk 0:00:07.9]} 62. Kg3 {[%clk 0:00:04.2]} 62...
Ra8 {[%clk 0:00:08.3]} 63. Kg2 {[%clk 0:00:04.2]} 63... Kg8 {[%clk 0:00:09]} 64.
Kg3 {[%clk 0:00:04.7]} 64... Re8 {[%clk 0:00:09.5]} 65. Rc7 {[%clk 0:00:05.1]}
65... Kf8 {[%clk 0:00:09.9]} 66. Rd7 {[%clk 0:00:05.2]} 66... Re7 {[%clk
0:00:10.5]} 67. Rd8+ {[%clk 0:00:05.5]} 67... Kf7 {[%clk 0:00:11]} 68. Rb8
{[%clk 0:00:06.3]} 68... Rd7 {[%clk 0:00:10.4]} 69. Rc8 {[%clk 0:00:05.9]} 69...
Ke6 {[%clk 0:00:10.4]} 70. Re8+ {[%clk 0:00:06]} 70... Kd5 {[%clk 0:00:10.7]}
71. Ra8 {[%clk 0:00:05]} 71... Rc7 {[%clk 0:00:09.4]} 72. Kf2 {[%clk 0:00:04.2]}
72... Ke6 {[%clk 0:00:08.9]} 73. Ra6+ {[%clk 0:00:04]} 73... Ke7 {[%clk
0:00:09.1]} 74. Ke3 {[%clk 0:00:04.5]} 74... Kf7 {[%clk 0:00:09]} 75. Ra8 {[%clk
0:00:04.3]} 75... Rd7 {[%clk 0:00:06.6]} 76. Ke2 {[%clk 0:00:04.6]} 76... Ke6
{[%clk 0:00:05.6]} 77. Ke3 {[%clk 0:00:05]} 77... Kf7 {[%clk 0:00:05.7]} 78. Ra6
{[%clk 0:00:05.4]} 78... Re7 {[%clk 0:00:06.6]} 79. Rb6 {[%clk 0:00:05.8]} 79...
Kg8 {[%clk 0:00:06.5]} 80. Rc6 {[%clk 0:00:06.3]} 80... Kh7 {[%clk 0:00:06.7]}
81. Rd6 {[%clk 0:00:06.8]} 81... Ra7 {[%clk 0:00:06]} 82. Rc6 {[%clk 0:00:06.8]}
82... Rf7 {[%clk 0:00:04.1]} 83. Ke2 {[%clk 0:00:07.1]} 83... g6 {[%clk
0:00:04.7]} 84. hxg6+ {[%clk 0:00:06.5]} 84... Kxg6 {[%clk 0:00:05.6]} 85. Ke3
{[%clk 0:00:07.2]} 85... Rh7 {[%clk 0:00:05.9]} 86. Ke4 {[%clk 0:00:07]} 86...
Rh2 {[%clk 0:00:06.1]} 87. Rc8 {[%clk 0:00:07]} 87... Re2+ {[%clk 0:00:06.3]}
88. Kd3 {[%clk 0:00:07.5]} 88... Re1 {[%clk 0:00:07]} 89. Rg8+ {[%clk 0:00:07]}
89... Kf7 {[%clk 0:00:07.6]} 90. Ra8 {[%clk 0:00:07.1]} 90... Rd1+ {[%clk
0:00:06.7]} 91. Ke2 {[%clk 0:00:07.2]} 91... Rd4 {[%clk 0:00:07.2]} 92. Ra7+
{[%clk 0:00:07.3]} 92... Ke6 {[%clk 0:00:07.7]} 93. Ra6+ {[%clk 0:00:07.8]}
93... Rd6 {[%clk 0:00:08.4]} 94. Ra8 {[%clk 0:00:08.5]} 94... Kd5 {[%clk
0:00:08.2]} 95. Ra5+ {[%clk 0:00:09.2]} 95... Ke6 {[%clk 0:00:08.1]} 96. Ra8
{[%clk 0:00:09.3]} 96... Rc6 {[%clk 0:00:08.7]} 97. Rb8 {[%clk 0:00:09.3]} 97...
Kd5 {[%clk 0:00:09]} 98. Rd8+ {[%clk 0:00:09.3]} 98... Kc4 {[%clk 0:00:09]} 99.
Ke3 {[%clk 0:00:09.2]} 99... Kc5 {[%clk 0:00:09.4]} 100. Ke4 {[%clk 0:00:09.3]}
100... Ra6 {[%clk 0:00:08.5]} 101. Kf5 {[%clk 0:00:07.6]} 101... Kc4 {[%clk
0:00:04.9]} 102. Rf8 {[%clk 0:00:05.4]} 102... Kd4 {[%clk 0:00:05]} 103. Rxf6
{[%clk 0:00:04.8]} 103... Ra3 {[%clk 0:00:02.2]} 104. Kxg5 {[%clk 0:00:04.1]}
104... Re3 {[%clk 0:00:02.5]} 105. Rf5 {[%clk 0:00:04.2]} 105... Re1 {[%clk
0:00:02.8]} 106. Rf8 {[%clk 0:00:03.9]} 106... Rg1 {[%clk 0:00:03.2]} 107. Kh5
{[%clk 0:00:03.6]} 107... Ke3 {[%clk 0:00:03.1]} 108. g5 {[%clk 0:00:03]} 108...
Rg3 {[%clk 0:00:03.3]} 109. g6 {[%clk 0:00:02.9]} 109... Rh3+ {[%clk 0:00:03.5]}
110. Kg5 {[%clk 0:00:03]} 110... Rg3+ {[%clk 0:00:03.5]} 111. Kh6 {[%clk
0:00:03.6]} 111... e4 {[%clk 0:00:03.3]} 112. fxe4 {[%clk 0:00:03.7]} 112...
Kxe4 {[%clk 0:00:04.2]} 113. Kg7 {[%clk 0:00:04]} 113... Ke5 {[%clk 0:00:04.2]}
114. Rf1 {[%clk 0:00:04.7]} 114... Ke6 {[%clk 0:00:04.5]} 115. Kh7 {[%clk
0:00:05.2]} 115... Rh3+ {[%clk 0:00:04.6]} 116. Kg8 {[%clk 0:00:05.7]} 116...
Rg3 {[%clk 0:00:05.3]} 117. g7 {[%clk 0:00:06.1]} 117... Ke7 {[%clk 0:00:06.2]}
118. Rf4 {[%clk 0:00:06.2]} 118... Ke6 {[%clk 0:00:05.6]} 119. Kh7 {[%clk
0:00:06.7]} 119... Rh3+ {[%clk 0:00:04.9]} 120. Kg6 {[%clk 0:00:06.6]} 120...
Rg3+ {[%clk 0:00:05.6]} 121. Kh7 {[%clk 0:00:07.1]} 121... Ke7 {[%clk
0:00:05.7]} 122. Kg8 {[%clk 0:00:06.8]} 122... Rg1 {[%clk 0:00:05.3]} 123. Re4+
{[%clk 0:00:07.2]} 123... Kf6 {[%clk 0:00:04.9]} 124. Rf4+ {[%clk 0:00:07.4]}
124... Ke7 {[%clk 0:00:05.6]} 125. Rf3 {[%clk 0:00:07.4]} 125... Rg2 {[%clk
0:00:04.9]} 126. Re3+ {[%clk 0:00:06.4]} 126... Kf6 {[%clk 0:00:04.8]} 127. Kf8
{[%clk 0:00:07]} 1-0

[Event "Early-Titled-Tuesday-Blitz-January-23-2024"]
[Site "Chess.com"]
[Date "2024.01.23"]
[Round "6"]
[White "Laico"]
[Black "The_Straightforward_Rook"]
[Result "1-0"]
[WhiteElo "2354"]
[BlackElo "2504"]
[TimeControl "180+1"]
[EndTime "9:02:09 PST"]
[Termination "Laico won by resignation"]

1. e4 {[%clk 0:03:00.9]} 1... c6 {[%clk 0:02:55.4]} 2. d4 {[%clk 0:03:00.4]}
2... d5 {[%clk 0:02:56.3]} 3. f3 {[%clk 0:03:01]} 3... Qb6 {[%clk 0:02:52.5]} 4.
Nc3 {[%clk 0:02:44.9]} 4... dxe4 {[%clk 0:02:42.6]} 5. fxe4 {[%clk 0:02:41]}
5... e5 {[%clk 0:02:42.3]} 6. Nf3 {[%clk 0:02:40.8]} 6... Bg4 {[%clk 0:02:39.2]}
7. Bc4 {[%clk 0:02:38.4]} 7... Nd7 {[%clk 0:02:05.7]} 8. Bxf7+ {[%clk
0:02:37.3]} 8... Kxf7 {[%clk 0:02:06.6]} 9. Ng5+ {[%clk 0:02:37.1]} 9... Ke8
{[%clk 0:02:07.3]} 10. Qxg4 {[%clk 0:02:36.9]} 10... Be7 {[%clk 0:02:00.5]} 11.
Qe6 {[%clk 0:02:35]} 11... Nh6 {[%clk 0:01:58]} 12. d5 {[%clk 0:02:21]} 12...
cxd5 {[%clk 0:01:42.8]} 13. Nxd5 {[%clk 0:02:20.6]} 13... Qxe6 {[%clk
0:01:36.3]} 14. Nc7+ {[%clk 0:02:20.3]} 14... Kd8 {[%clk 0:01:33.2]} 15. Ngxe6+
{[%clk 0:02:20.3]} 15... Kc8 {[%clk 0:01:33.4]} 16. Nxa8 {[%clk 0:02:20.2]}
16... Bd6 {[%clk 0:01:25.8]} 17. Bxh6 {[%clk 0:02:17.3]} 17... gxh6 {[%clk
0:01:24.3]} 18. O-O-O {[%clk 0:02:16.6]} 1-0

[Event "Early-Titled-Tuesday-Blitz-January-23-2024"]
[Site "Chess.com"]
[Date "2024.01.23"]
[Round "6"]
[White "Rodalquilar"]
[Black "secretsuperstar7"]
[Result "1-0"]
[WhiteElo "2724"]
[BlackElo "2508"]
[TimeControl "180+1"]
[EndTime "9:02:26 PST"]
[Termination "Rodalquilar won by resignation"]

1. d4 {[%clk 0:03:00.9]} 1... Nf6 {[%clk 0:02:55.8]} 2. Nf3 {[%clk 0:03:01.1]}
2... d5 {[%clk 0:02:55.2]} 3. Bf4 {[%clk 0:03:01.2]} 3... e6 {[%clk 0:02:54.7]}
4. e3 {[%clk 0:03:01.5]} 4... c5 {[%clk 0:02:55]} 5. Nbd2 {[%clk 0:03:01.3]}
5... Nc6 {[%clk 0:02:55.3]} 6. c3 {[%clk 0:03:01.6]} 6... Bd6 {[%clk 0:02:55.4]}
7. Bg3 {[%clk 0:02:59]} 7... O-O {[%clk 0:02:55]} 8. Bb5 {[%clk 0:02:59]} 8...
Bd7 {[%clk 0:02:44.4]} 9. Bxd6 {[%clk 0:02:58.1]} 9... Re8 {[%clk 0:02:41.7]}
10. dxc5 {[%clk 0:02:48]} 10... e5 {[%clk 0:02:41]} 11. Bxc6 {[%clk 0:02:48]}
11... Bxc6 {[%clk 0:02:39]} 12. Nxe5 {[%clk 0:02:47.1]} 12... Re6 {[%clk
0:02:37.9]} 13. Nxc6 {[%clk 0:02:46.1]} 13... bxc6 {[%clk 0:02:38.8]} 14. O-O
{[%clk 0:02:44.9]} 14... Ne4 {[%clk 0:02:37.8]} 15. Nxe4 {[%clk 0:02:44.8]}
15... Rxe4 {[%clk 0:02:38.7]} 16. Qb3 {[%clk 0:02:35.6]} 16... Qd7 {[%clk
0:02:38.3]} 17. a4 {[%clk 0:02:31]} 17... h5 {[%clk 0:02:36.4]} 18. h3 {[%clk
0:02:26.8]} 18... g5 {[%clk 0:02:34.1]} 19. a5 {[%clk 0:02:26.9]} 19... g4
{[%clk 0:02:32.2]} 20. h4 {[%clk 0:02:11.2]} 20... Qd8 {[%clk 0:02:22.2]} 21.
Bg3 {[%clk 0:02:08.9]} 21... Qe7 {[%clk 0:02:20.7]} 22. a6 {[%clk 0:02:04.4]}
22... Qxc5 {[%clk 0:02:19]} 23. Qb7 {[%clk 0:01:57.9]} 23... Ree8 {[%clk
0:02:17.2]} 24. Ra4 {[%clk 0:01:53.2]} 24... Rad8 {[%clk 0:02:04.6]} 25. Qb4
{[%clk 0:01:49.4]} 25... Qb5 {[%clk 0:01:59.8]} 26. Qxb5 {[%clk 0:01:49.1]}
26... cxb5 {[%clk 0:02:00.7]} 27. Rb4 {[%clk 0:01:49.6]} 27... Re6 {[%clk
0:02:00.6]} 28. Ra1 {[%clk 0:01:49.3]} 28... Rb6 {[%clk 0:02:00.4]} 29. Bc7
{[%clk 0:01:48.6]} 1-0

[Event "Early-Titled-Tuesday-Blitz-January-23-2024"]
[Site "Chess.com"]
[Date "2024.01.23"]
[Round "6"]
[White "Nellichka"]
[Black "LeoWin2012"]
[Result "0-1"]
[WhiteElo "1933"]
[BlackElo "2196"]
[TimeControl "180+1"]
[EndTime "9:02:28 PST"]
[Termination "LeoWin2012 won by resignation"]

1. d4 {[%clk 0:03:00.9]} 1... Nf6 {[%clk 0:02:48.2]} 2. c4 {[%clk 0:03:00]} 2...
e6 {[%clk 0:02:39]} 3. Nc3 {[%clk 0:02:59]} 3... d5 {[%clk 0:02:38.6]} 4. cxd5
{[%clk 0:02:55.9]} 4... exd5 {[%clk 0:02:39.5]} 5. Bg5 {[%clk 0:02:54.5]} 5...
c6 {[%clk 0:02:38.3]} 6. e3 {[%clk 0:02:49.9]} 6... Be7 {[%clk 0:02:38.7]} 7.
Bd3 {[%clk 0:02:48]} 7... O-O {[%clk 0:02:38.8]} 8. Qc2 {[%clk 0:02:45.6]} 8...
h6 {[%clk 0:02:38]} 9. h4 {[%clk 0:02:42.5]} 9... a5 {[%clk 0:02:08.5]} 10. f3
{[%clk 0:02:35.3]} 10... Na6 {[%clk 0:01:59.1]} 11. a3 {[%clk 0:02:33.9]} 11...
Nc7 {[%clk 0:01:58.1]} 12. g4 {[%clk 0:02:32.4]} 12... b5 {[%clk 0:01:55.8]} 13.
Bxf6 {[%clk 0:02:31.3]} 13... Bxf6 {[%clk 0:01:55.8]} 14. g5 {[%clk 0:02:31]}
14... Be7 {[%clk 0:01:54.8]} 15. gxh6 {[%clk 0:02:28.2]} 15... gxh6 {[%clk
0:01:53.9]} 16. Nge2 {[%clk 0:02:27.2]} 16... f5 {[%clk 0:01:45.6]} 17. O-O-O
{[%clk 0:02:23.6]} 17... b4 {[%clk 0:01:41.7]} 18. Na4 {[%clk 0:02:19.4]} 18...
bxa3 {[%clk 0:01:41.4]} 19. Qxc6 {[%clk 0:02:12.1]} 19... axb2+ {[%clk
0:01:39.4]} 20. Nxb2 {[%clk 0:02:09.3]} 20... Rf6 {[%clk 0:01:36.5]} 21. Qxa8
{[%clk 0:02:06.9]} 21... Nxa8 {[%clk 0:01:34.8]} 0-1

[Event "Early-Titled-Tuesday-Blitz-January-23-2024"]
[Site "Chess.com"]
[Date "2024.01.23"]
[Round "6"]
[White "FMCASTE"]
[Black "isaak2009"]
[Result "0-1"]
[WhiteElo "2491"]
[BlackElo "2654"]
[TimeControl "180+1"]
[EndTime "9:03:05 PST"]
[Termination "isaak2009 won by resignation"]

1. Nf3 {[%clk 0:02:54.2]} 1... d5 {[%clk 0:02:59.7]} 2. b3 {[%clk 0:02:55.1]}
2... Nf6 {[%clk 0:02:58.9]} 3. Bb2 {[%clk 0:02:56]} 3... Bg4 {[%clk 0:02:57.3]}
4. e3 {[%clk 0:02:56.9]} 4... Nbd7 {[%clk 0:02:57.1]} 5. h3 {[%clk 0:02:57.2]}
5... Bxf3 {[%clk 0:02:57]} 6. Qxf3 {[%clk 0:02:56]} 6... e5 {[%clk 0:02:57.1]}
7. d3 {[%clk 0:02:55.9]} 7... c6 {[%clk 0:02:55.5]} 8. Nd2 {[%clk 0:02:56.4]}
8... Bd6 {[%clk 0:02:55.3]} 9. g4 {[%clk 0:02:55.6]} 9... h6 {[%clk 0:02:51.5]}
10. Rg1 {[%clk 0:02:55]} 10... Qe7 {[%clk 0:02:49.8]} 11. a4 {[%clk 0:02:53.5]}
11... O-O-O {[%clk 0:02:46.4]} 12. a5 {[%clk 0:02:53.8]} 12... a6 {[%clk
0:02:39.7]} 13. Bg2 {[%clk 0:02:49.3]} 13... Rhe8 {[%clk 0:02:37.1]} 14. Ra4
{[%clk 0:02:49.1]} 14... Nc5 {[%clk 0:02:21.7]} 15. Ra2 {[%clk 0:02:44.9]} 15...
Kb8 {[%clk 0:02:19.9]} 16. h4 {[%clk 0:02:43.8]} 16... e4 {[%clk 0:02:16.9]} 17.
dxe4 {[%clk 0:02:25.9]} 17... dxe4 {[%clk 0:02:10.1]} 18. Qe2 {[%clk 0:02:25.9]}
18... Be5 {[%clk 0:02:07.4]} 19. Nc4 {[%clk 0:02:19]} 19... Bxb2 {[%clk
0:02:06.8]} 20. Rxb2 {[%clk 0:02:19.9]} 20... Nd5 {[%clk 0:02:05.7]} 21. Qd2
{[%clk 0:02:00]} 21... Qf6 {[%clk 0:02:05.6]} 22. Qd4 {[%clk 0:01:50.6]} 22...
Nc3 {[%clk 0:02:00.8]} 23. b4 {[%clk 0:01:27.9]} 23... Rxd4 {[%clk 0:01:58.6]}
24. exd4 {[%clk 0:01:23.6]} 24... Qxd4 {[%clk 0:01:59.2]} 25. Ne3 {[%clk
0:01:24.5]} 25... Rd8 {[%clk 0:01:54.2]} 0-1

[Event "Early-Titled-Tuesday-Blitz-January-23-2024"]
[Site "Chess.com"]
[Date "2024.01.23"]
[Round "6"]
[White "Kamilek84"]
[Black "AsselLesbekova"]
[Result "1-0"]
[WhiteElo "2685"]
[BlackElo "2283"]
[TimeControl "180+1"]
[EndTime "9:03:06 PST"]
[Termination "Kamilek84 won by resignation"]

1. d4 {[%clk 0:02:50.9]} 1... d5 {[%clk 0:03:00]} 2. c4 {[%clk 0:02:50]} 2... e6
{[%clk 0:03:00.4]} 3. Nc3 {[%clk 0:02:46.6]} 3... a6 {[%clk 0:03:00.8]} 4. e3
{[%clk 0:02:39.5]} 4... dxc4 {[%clk 0:03:00.4]} 5. Bxc4 {[%clk 0:02:39.1]} 5...
b5 {[%clk 0:03:00.8]} 6. Bb3 {[%clk 0:02:37.3]} 6... Bb7 {[%clk 0:03:01.3]} 7.
Nf3 {[%clk 0:02:37]} 7... c5 {[%clk 0:02:59.6]} 8. O-O {[%clk 0:02:36.7]} 8...
Nf6 {[%clk 0:02:57.2]} 9. e4 {[%clk 0:02:36.7]} 9... cxd4 {[%clk 0:02:45.9]} 10.
Nxd4 {[%clk 0:02:33]} 10... Nxe4 {[%clk 0:02:41.9]} 11. Nxe4 {[%clk 0:02:31.2]}
11... Bxe4 {[%clk 0:02:42.8]} 12. Re1 {[%clk 0:02:23.7]} 12... Bd5 {[%clk
0:02:36.2]} 13. Nxe6 {[%clk 0:01:14.9]} 13... Bxe6 {[%clk 0:02:28.2]} 14. Qh5
{[%clk 0:01:14.4]} 14... Nc6 {[%clk 0:01:44.5]} 15. Rxe6+ {[%clk 0:01:09.4]}
15... Kd7 {[%clk 0:01:44.1]} 16. Qd5+ {[%clk 0:01:04.9]} 16... Kc7 {[%clk
0:01:39.3]} 17. Rxc6+ {[%clk 0:01:02.2]} 1-0

[Event "Early-Titled-Tuesday-Blitz-January-23-2024"]
[Site "Chess.com"]
[Date "2024.01.23"]
[Round "6"]
[White "VinzentSpitzl"]
[Black "Pliukha_Mikhail"]
[Result "0-1"]
[WhiteElo "2523"]
[BlackElo "2740"]
[TimeControl "180+1"]
[EndTime "9:03:13 PST"]
[Termination "Pliukha_Mikhail won by resignation"]

1. e4 {[%clk 0:02:46.2]} 1... d5 {[%clk 0:03:00]} 2. exd5 {[%clk 0:02:46]} 2...
Qxd5 {[%clk 0:03:00.9]} 3. Nf3 {[%clk 0:02:46.7]} 3... Bg4 {[%clk 0:03:00.5]} 4.
Be2 {[%clk 0:02:45.8]} 4... Bxf3 {[%clk 0:03:01.1]} 5. Bxf3 {[%clk 0:02:45.4]}
5... Qe5+ {[%clk 0:03:00.8]} 6. Qe2 {[%clk 0:02:45.3]} 6... Qxe2+ {[%clk
0:03:00.8]} 7. Bxe2 {[%clk 0:02:46.2]} 7... Nc6 {[%clk 0:03:01.7]} 8. d3 {[%clk
0:02:40.6]} 8... O-O-O {[%clk 0:03:01.6]} 9. Be3 {[%clk 0:02:36.1]} 9... g6
{[%clk 0:03:01.7]} 10. Nc3 {[%clk 0:02:35.5]} 10... Bg7 {[%clk 0:03:01.9]} 11.
O-O-O {[%clk 0:02:34.8]} 11... Nf6 {[%clk 0:03:00.9]} 12. h3 {[%clk 0:02:34.3]}
12... e5 {[%clk 0:02:55.6]} 13. Rhe1 {[%clk 0:02:30.4]} 13... Rhe8 {[%clk
0:02:55.1]} 14. Bf3 {[%clk 0:02:25.2]} 14... Nd4 {[%clk 0:02:53.9]} 15. Bxd4
{[%clk 0:02:22.5]} 15... exd4 {[%clk 0:02:54.8]} 16. Ne4 {[%clk 0:02:15.3]}
16... Nd7 {[%clk 0:02:53.5]} 17. Ng5 {[%clk 0:02:03]} 17... Bh6 {[%clk
0:02:53.4]} 18. h4 {[%clk 0:01:29.1]} 18... f6 {[%clk 0:02:52.7]} 19. Bg4 {[%clk
0:01:25]} 19... fxg5 {[%clk 0:02:52.2]} 20. h5 {[%clk 0:01:25.2]} 20... gxh5
{[%clk 0:02:48.2]} 21. Bxh5 {[%clk 0:01:25.8]} 21... Rxe1 {[%clk 0:02:43.2]} 22.
Rxe1 {[%clk 0:01:26.2]} 22... Nf6 {[%clk 0:02:39.3]} 23. Bf7 {[%clk 0:01:25.2]}
23... g4+ {[%clk 0:02:37.7]} 24. Kd1 {[%clk 0:01:24.5]} 24... Rf8 {[%clk
0:02:37.6]} 25. Be6+ {[%clk 0:01:23.3]} 25... Kd8 {[%clk 0:02:38]} 26. Re5
{[%clk 0:01:19.2]} 26... c6 {[%clk 0:02:33.8]} 27. Bb3 {[%clk 0:01:15.4]} 27...
Bf4 {[%clk 0:02:19.8]} 28. Rf5 {[%clk 0:01:13.8]} 28... Nd7 {[%clk 0:02:17.7]}
29. Rh5 {[%clk 0:01:12.5]} 29... h6 {[%clk 0:02:16.8]} 30. Be6 {[%clk
0:01:11.1]} 30... Bg5 {[%clk 0:02:13.1]} 31. Bxg4 {[%clk 0:01:06.5]} 31... Rxf2
{[%clk 0:02:12.4]} 32. Ke1 {[%clk 0:01:04.5]} 32... Rxc2 {[%clk 0:02:11.3]} 0-1

[Event "Early-Titled-Tuesday-Blitz-January-23-2024"]
[Site "Chess.com"]
[Date "2024.01.23"]
[Round "6"]
[White "abhidabhi"]
[Black "GMAkobianSTL"]
[Result "1-0"]
[WhiteElo "2932"]
[BlackElo "2754"]
[TimeControl "180+1"]
[EndTime "9:03:27 PST"]
[Termination "abhidabhi won by resignation"]

1. e4 {[%clk 0:03:00.9]} 1... d6 {[%clk 0:02:59.4]} 2. d4 {[%clk 0:03:00.7]}
2... Nf6 {[%clk 0:02:59.5]} 3. Nc3 {[%clk 0:03:01]} 3... c6 {[%clk 0:02:59.6]}
4. Be3 {[%clk 0:03:00.2]} 4... Qb6 {[%clk 0:02:59]} 5. Bd3 {[%clk 0:02:55.6]}
5... Qxb2 {[%clk 0:02:56.1]} 6. Nge2 {[%clk 0:02:54.9]} 6... e5 {[%clk
0:02:50.7]} 7. a3 {[%clk 0:02:38.1]} 7... Bg4 {[%clk 0:01:34.8]} 8. Na4 {[%clk
0:02:23.2]} 8... Qxa1 {[%clk 0:01:25.6]} 9. Qxa1 {[%clk 0:02:22.7]} 9... Nbd7
{[%clk 0:01:25.7]} 10. f3 {[%clk 0:02:20.6]} 10... Be6 {[%clk 0:01:23.3]} 11. c4
{[%clk 0:02:20.5]} 11... exd4 {[%clk 0:01:20.8]} 12. Nxd4 {[%clk 0:02:20.7]}
12... Be7 {[%clk 0:01:20]} 13. O-O {[%clk 0:02:19.8]} 13... O-O {[%clk
0:01:16.3]} 14. Rb1 {[%clk 0:02:10.9]} 14... Ne5 {[%clk 0:01:03]} 15. Rxb7
{[%clk 0:02:06.3]} 15... Nxd3 {[%clk 0:00:56.1]} 16. Rxe7 {[%clk 0:02:05.3]}
16... Bxc4 {[%clk 0:00:55.6]} 17. Nf5 {[%clk 0:02:04.5]} 17... d5 {[%clk
0:00:39]} 18. Nxg7 {[%clk 0:01:50.8]} 18... Kxg7 {[%clk 0:00:37.9]} 19. Bg5
{[%clk 0:01:49.6]} 1-0

[Event "Early-Titled-Tuesday-Blitz-January-23-2024"]
[Site "Chess.com"]
[Date "2024.01.23"]
[Round "6"]
[White "AttilaTurzo"]
[Black "mertfelin"]
[Result "1-0"]
[WhiteElo "2502"]
[BlackElo "2278"]
[TimeControl "180+1"]
[EndTime "9:03:35 PST"]
[Termination "AttilaTurzo won by resignation"]

1. d4 {[%clk 0:03:00.9]} 1... d5 {[%clk 0:02:59.5]} 2. Nf3 {[%clk 0:03:00.3]}
2... Nf6 {[%clk 0:02:59.6]} 3. Bf4 {[%clk 0:03:00.3]} 3... e6 {[%clk 0:02:58.9]}
4. e3 {[%clk 0:03:00.6]} 4... Bd6 {[%clk 0:02:59.6]} 5. Nbd2 {[%clk 0:03:00.3]}
5... Bxf4 {[%clk 0:02:59.7]} 6. exf4 {[%clk 0:03:00.6]} 6... O-O {[%clk
0:03:00.5]} 7. Bd3 {[%clk 0:02:58.1]} 7... Qd6 {[%clk 0:02:43.5]} 8. g3 {[%clk
0:02:53.7]} 8... b6 {[%clk 0:02:35.2]} 9. Qe2 {[%clk 0:02:48.8]} 9... Bb7 {[%clk
0:02:31]} 10. c3 {[%clk 0:02:44.9]} 10... c5 {[%clk 0:02:30.7]} 11. O-O {[%clk
0:02:42.1]} 11... Nc6 {[%clk 0:02:29.4]} 12. a3 {[%clk 0:02:32.4]} 12... Rfe8
{[%clk 0:02:06.5]} 13. Rfe1 {[%clk 0:02:23.8]} 13... Rac8 {[%clk 0:02:02.3]} 14.
Rac1 {[%clk 0:02:22.4]} 14... cxd4 {[%clk 0:01:42.6]} 15. Nxd4 {[%clk
0:02:16.7]} 15... Nxd4 {[%clk 0:01:18.7]} 16. cxd4 {[%clk 0:02:17.6]} 16... Red8
{[%clk 0:01:05.9]} 17. Nf3 {[%clk 0:01:50.4]} 17... Rc7 {[%clk 0:01:02.2]} 18.
Qe5 {[%clk 0:01:41.1]} 18... Qxe5 {[%clk 0:01:01.1]} 19. fxe5 {[%clk 0:01:32.8]}
19... Rxc1 {[%clk 0:01:01.5]} 20. Rxc1 {[%clk 0:01:32.1]} 20... Ne8 {[%clk
0:01:02.3]} 21. Bb5 {[%clk 0:01:22.2]} 21... Nc7 {[%clk 0:01:02.3]} 22. Rxc7
{[%clk 0:01:21.3]} 1-0